fUSD/lending_fUSD_20260112
["ID","MTS","AMOUNT","RATE_DAILY","PERIOD"]
[401429974,1768206643748,-500.0,0.00015315,2]
[401429975,1768206643758,-112386.16128503,0.0001532,2]
[401429976,1768206643767,-1295.16,0.00015342,2]
[401429977,1768206643777,-151.0,0.00015354,2]
[401429978,1768206643786,-595.37131296,0.00015354,2]
[401429979,1768206643796,-736.0,0.00015452,2]
[401429980,1768206643806,-1131.10845788,0.00015484,2]
[401429981,1768206643816,-150.0,0.00015606,2]
[401429982,1768206643825,-1295.16,0.00015616,2]
[401429983,1768206643836,-3731.00451843,0.0001564,2]
[401429984,1768206643845,-1852.42,0.00015659,2]
[401429985,1768206643856,-1433.4,0.00015687,2]
[401429986,1768206643866,-1000.0,0.00015709,2]
[401429987,1768206643875,-250.0,0.00015719,2]
[401429988,1768206643887,-823.0,0.00015742,2]
[401429990,1768206643896,-823.0,0.00015742,2]
[401429991,1768206643905,-180.0,0.00015808,2]
[401429993,1768206643915,-3292.0,0.00015832,2]
[401429995,1768206643924,-4831.1649,0.00015832,2]
[401429997,1768206643934,-1295.16,0.0001589,2]
[401429998,1768206643943,-10705.90201669,0.00015899,2]
[401429999,1768206643954,-1236.5500663,0.000159,2]
[401430000,1768206643964,-1236.5500663,0.000159,2]
[401430001,1768206643974,-1236.5500663,0.000159,2]
[401430002,1768206643984,-1236.5500663,0.000159,2]
[401430003,1768206643994,-1236.5500663,0.000159,2]
[401430004,1768206644004,-151.0,0.00015902,2]
[401430005,1768206644015,-617.40005154,0.00015902,2]
[401430006,1768206644026,-201.88,0.00015904,2]
[401430007,1768206644036,-3391.85,0.00015962,2]
[401430008,1768206644049,-200.0,0.00015988,2]
[401430009,1768206644059,-5992.06559615,0.00016,4]
[401430010,1768206644069,-1101.0,0.00016063,2]
[401430011,1768206644079,-9999.99,0.00016116,2]
[401430012,1768206644088,-1295.16,0.00016164,2]
[401430013,1768206644098,-150.0,0.000162,2]
[401430014,1768206644107,-150.0,0.000162,2]
[401430015,1768206644117,-150.0,0.000162,2]
[401430016,1768206644126,-150.0,0.000162,2]
[401430017,1768206644137,-150.64069561,0.000162,2]
[401430018,1768206644146,-150.0,0.000162,2]
[401430019,1768206644155,-150.0,0.000162,2]
[401430020,1768206644165,-150.0,0.000162,2]
[401430021,1768206644176,-150.48103859,0.000162,2]
[401430022,1768206644185,-150.0,0.000162,2]
[401430023,1768206644195,-150.5110912,0.000162,2]
[401430024,1768206644204,-150.0,0.000162,2]
[401430025,1768206644214,-150.0,0.000162,2]
[401430026,1768206644223,-150.0,0.000162,2]
[401430027,1768206644233,-331.18764993,0.000162,2]
[401430028,1768206644242,-5000.00077912,0.000162,5]
[401430029,1768206644251,-331.18764993,0.00016218,2]
[401430030,1768206644260,-331.18764993,0.00016236,2]
[401430031,1768206644270,-331.18764993,0.00016255,2]
[401430032,1768206644279,-331.18764993,0.00016273,2]
[401430033,1768206644289,-150.0,0.00016275,2]
[401430034,1768206644299,-150.0,0.00016275,2]
[401430035,1768206644308,-1131.10845788,0.00016289,2]
[401430036,1768206644319,-150.0,0.0001629,2]
[401430037,1768206644328,-331.18764993,0.00016291,2]
[401430038,1768206644338,-150.0,0.00016291,2]
[401430039,1768206644348,-70566.56605173,0.00016298,2]
[401430040,1768206644358,-331.18764993,0.00016309,2]
[401430041,1768206644367,-150.0,0.00016312,2]
[401430042,1768206644377,-150.0,0.00016312,2]
[401430043,1768206644388,-150.0,0.0001632,2]
[401430044,1768206644398,-331.18764993,0.00016327,2]
[401430045,1768206644408,-150.0,0.00016329,2]
[401430046,1768206644417,-150.0,0.00016338,2]
[401430047,1768206644427,-331.18764993,0.00016345,2]
[401430048,1768206644437,-150.0,0.0001635,2]
[401430049,1768206644447,-150.0,0.0001635,2]
[401430050,1768206644456,-331.18764993,0.00016364,2]
[401430051,1768206644467,-306.57,0.00016371,2]
[401430052,1768206644478,-150.0,0.0001638,2]
[401430053,1768206644487,-331.18764993,0.00016382,2]
[401430054,1768206644498,-150.0,0.000164,2]
[401430055,1768206644511,-331.18764993,0.000164,2]
[401430056,1768206644521,-162.0,0.000164,2]
[401430057,1768206644531,-331.18764993,0.00016418,2]
[401430058,1768206644543,-150.0,0.00016425,2]
[401430059,1768206644553,-150.0,0.00016425,2]
[401430060,1768206644562,-150.0,0.00016425,2]
[401430061,1768206644572,-150.0,0.00016425,2]
[401430062,1768206644583,-1000.0,0.00016432,2]
[401430063,1768206644593,-331.18764993,0.00016436,2]
[401430064,1768206644603,-150.0,0.00016437,2]
[401430065,1768206644613,-1295.16,0.00016438,2]
[401430066,1768206644624,-1063.57,0.00016438,2]
[401430067,1768206644635,-1063.57,0.00016438,2]
[401430068,1768206644645,-1063.57,0.00016438,2]
[401430069,1768206644654,-1063.57,0.00016438,2]
[401430070,1768206644663,-1063.57,0.00016438,2]
[401430071,1768206644673,-1063.57,0.00016438,2]
[401430072,1768206644683,-567.0,0.00016438,2]
[401430073,1768206644693,-800.75292195,0.00016438,2]
[401430074,1768206644702,-151.0,0.00016438,2]
[401430075,1768206644713,-150.0,0.0001644,2]
[401430076,1768206644723,-1000.0,0.00016446,2]
[401430077,1768206644733,-666.72878,0.00016448,2]
[401430078,1768206644743,-346.92554585,0.00016448,2]
[401430079,1768206644753,-998.0,0.00016449,2]
[401430080,1768206644763,-151.0,0.0001645,2]
[401430081,1768206644773,-640.24385345,0.0001645,2]
[401430082,1768206644783,-331.18764993,0.00016455,2]
[401430083,1768206644794,-150.0,0.00016457,2]
[401430084,1768206644804,-150.0,0.00016457,2]
[401430085,1768206644814,-150.0,0.0001647,2]
[401430086,1768206644824,-331.18764993,0.00016473,2]
[401430087,1768206644834,-150.0,0.00016477,2]
[401430088,1768206644843,-201.88,0.00016488,2]
[401430089,1768206644854,-331.18764993,0.00016491,2]
[401430090,1768206644863,-150.0,0.000165,2]
[401430091,1768206644873,-150.0,0.000165,2]
[401430092,1768206644883,-331.18764993,0.00016509,2]
[401430093,1768206644893,-170.3,0.00016514,2]
[401430094,1768206644903,-331.18764993,0.00016527,2]
[401430095,1768206644914,-150.0,0.00016537,2]
[401430096,1768206644924,-150.0,0.00016537,2]
[401430097,1768206644934,-331.18764993,0.00016545,2]
[401430098,1768206644945,-150.0,0.0001656,2]
[401430099,1768206644955,-150.0,0.0001656,2]
[401430100,1768206644964,-331.18764993,0.00016564,2]
[401430101,1768206644975,-10705.90201669,0.00016566,2]
[401430102,1768206644986,-150.0,0.00016575,2]
[401430103,1768206644996,-150.0,0.00016575,2]
[401430104,1768206645006,-331.18764993,0.00016582,2]
[401430105,1768206645015,-150.0,0.00016586,2]
[401430106,1768206645025,-150.0,0.000166,2]
[401430107,1768206645035,-331.18764993,0.000166,2]
[401430108,1768206645045,-150.0,0.00016615,2]
[401430110,1768206645055,-331.18764993,0.00016618,2]
[401430111,1768206645065,-331.18764993,0.00016636,2]
[401430112,1768206645075,-150.0,0.0001665,2]
[401430113,1768206645084,-150.0,0.0001665,2]
[401430114,1768206645093,-150.0,0.0001665,2]
[401430115,1768206645103,-150.0,0.0001665,2]
[401430116,1768206645113,-150.0,0.0001665,2]
[401430117,1768206645124,-331.18764993,0.00016655,2]
[401430118,1768206645135,-1000.0,0.00016655,2]
[401430119,1768206645145,-331.18764993,0.00016673,2]
[401430120,1768206645155,-150.0,0.0001668,2]
[401430121,1768206645166,-331.18764993,0.00016691,2]
[401430122,1768206645177,-331.18764993,0.00016709,2]
[401430123,1768206645187,-1295.16,0.00016712,2]
[401430124,1768206645196,-150.0,0.00016714,2]
[401430125,1768206645207,-150.0,0.00016714,2]
[401430126,1768206645216,-150.0,0.00016725,2]
[401430127,1768206645226,-150.0,0.00016725,2]
[401430128,1768206645236,-331.18764993,0.00016727,2]
[401430129,1768206645246,-150.0,0.0001674,2]
[401430130,1768206645255,-331.18764993,0.00016745,2]
[401430131,1768206645265,-150.0,0.00016754,2]
[401430132,1768206645275,-150.0,0.00016762,2]
[401430133,1768206645284,-150.0,0.00016762,2]
[401430134,1768206645294,-331.18764993,0.00016764,2]
[401430135,1768206645303,-1000.0,0.00016775,2]
[401430136,1768206645313,-306.57,0.00016781,2]
[401430137,1768206645323,-331.18764993,0.00016782,2]
[401430138,1768206645333,-150.0,0.000168,2]
[401430139,1768206645343,-150.0,0.000168,2]
[401430140,1768206645353,-150.0,0.000168,2]
[401430141,1768206645363,-191330.0542132,0.000168,2]
[401430142,1768206645372,-150.0,0.000168,2]
[401430143,1768206645382,-331.18764993,0.000168,2]
[401430144,1768206645393,-331.18764993,0.00016818,2]
[401430145,1768206645403,-150.0,0.0001683,2]
[401430146,1768206645413,-331.18764993,0.00016836,2]
[401430147,1768206645423,-150.0,0.00016843,2]
[401430148,1768206645432,-2247.8,0.00016846,2]
[401430149,1768206645442,-331.18764993,0.00016855,2]
[401430150,1768206645451,-1252.0,0.00016855,2]
[401430151,1768206645462,-1101.0,0.00016866,2]
[401430152,1768206645471,-331.18764993,0.00016873,2]
[401430153,1768206645481,-150.0,0.00016875,2]
[401430154,1768206645490,-150.0,0.00016875,2]
[401430155,1768206645500,-150.0,0.00016875,2]
[401430156,1768206645512,-150.0,0.00016875,2]
[401430157,1768206645522,-1000.0,0.00016886,2]
[401430158,1768206645532,-331.18764993,0.00016891,2]
[401430159,1768206645543,-150.0,0.00016892,2]
[401430160,1768206645553,-1700.0,0.000169,6]
[401430161,1768206645563,-331.18764993,0.00016909,2]
[401430162,1768206645574,-150.0,0.0001692,2]
[401430163,1768206645584,-150.0,0.0001692,2]
[401430164,1768206645594,-331.18764993,0.00016927,2]
[401430165,1768206645604,-1376.0,0.00016939,2]
[401430166,1768206645614,-331.18764993,0.00016945,2]
[401430167,1768206645625,-150.0,0.0001695,2]
[401430168,1768206645636,-150.0,0.0001695,2]
[401430169,1768206645647,-2247.8,0.00016951,2]
[401430170,1768206645656,-331.18764993,0.00016964,2]
[401430172,1768206645667,-150.0,0.00016971,2]
[401430173,1768206645677,-150.0,0.00016971,2]
[401430174,1768206645687,-331.18764993,0.00016982,2]
[401430176,1768206645697,-1295.16,0.00016986,2]
[401430177,1768206645707,-150.0,0.00016987,2]
[401430178,1768206645716,-150.0,0.00016987,2]
[401430179,1768206645726,-151.0,0.00016998,2]
[401430180,1768206645735,-663.93287602,0.00016998,2]
[401430181,1768206645745,-1063.57,0.00016999,2]
[401430182,1768206645755,-150.0,0.00017,2]
[401430183,1768206645765,-331.18764993,0.00017,2]
[401430184,1768206645774,-250.0,0.00017,2]
[401430185,1768206645784,-3557.07289406,0.00017,2]
[401430186,1768206645793,-160.0,0.00017,2]
[401430187,1768206645803,-150.0,0.0001701,2]
[401430188,1768206645812,-1376.0,0.00017013,2]
[401430189,1768206645822,-331.18764993,0.00017018,2]
[401430190,1768206645832,-150.0,0.00017025,2]
[401430192,1768206645842,-150.0,0.00017025,2]
[401430194,1768206645851,-1000.0,0.00017026,2]
[401430195,1768206645862,-150.0,0.00017031,2]
[401430196,1768206645871,-331.18764993,0.00017036,2]
[401430197,1768206645881,-150.0,0.0001704,2]
[401430198,1768206645891,-483.1,0.00017041,2]
[401430199,1768206645900,-661.95,0.00017041,2]
[401430200,1768206645910,-483.1,0.00017041,2]
[401430201,1768206645920,-661.95,0.00017041,2]
[401430202,1768206645930,-483.1,0.00017041,2]
[401430203,1768206645940,-661.95,0.00017041,2]
[401430204,1768206645956,-483.1,0.00017041,2]
[401430205,1768206645971,-481.28,0.00017041,2]
[401430206,1768206645981,-661.95,0.00017041,2]
[401430207,1768206645992,-661.95,0.00017041,2]
[401430208,1768206646002,-331.18764993,0.00017055,2]
[401430209,1768206646014,-2247.8,0.00017056,2]
[401430210,1768206646025,-500.0,0.00017072,2]
[401430211,1768206646036,-166.96227274,0.00017073,2]
[401430212,1768206646046,-500.0,0.00017073,2]
[401430213,1768206646057,-500.0,0.00017073,2]
[401430214,1768206646067,-500.0,0.00017073,2]
[401430215,1768206646078,-500.0,0.00017073,2]
[401430216,1768206646089,-173.30819609,0.00017073,2]
[401430217,1768206646099,-500.64635657,0.00017073,2]
[401430218,1768206646110,-540.4577012,0.00017073,2]
[401430219,1768206646121,-500.0,0.00017073,2]
[401430220,1768206646132,-500.51842778,0.00017073,2]
[401430221,1768206646143,-500.0,0.00017073,2]
[401430222,1768206646153,-500.0,0.00017073,2]
[401430223,1768206646163,-503.84192068,0.00017073,2]
[401430224,1768206646174,-500.0,0.00017073,2]
[401430225,1768206646184,-501.67211681,0.00017073,2]
[401430226,1768206646195,-500.0,0.00017073,2]
[401430227,1768206646205,-500.0,0.00017073,2]
[401430228,1768206646215,-162.59101262,0.00017073,2]
[401430229,1768206646225,-647.42016729,0.00017073,2]
[401430230,1768206646235,-500.0,0.00017073,2]
[401430231,1768206646245,-501.85422751,0.00017073,2]
[401430233,1768206646255,-500.0,0.00017073,2]
[401430235,1768206646265,-500.0,0.00017073,2]
[401430236,1768206646275,-163.4155148,0.00017073,2]
[401430237,1768206646284,-500.83788468,0.00017073,2]
[401430238,1768206646294,-500.0,0.00017073,2]
[401430239,1768206646304,-500.84079337,0.00017073,2]
[401430240,1768206646314,-500.0,0.00017073,2]
[401430241,1768206646330,-500.0,0.00017073,2]
[401430242,1768206646340,-500.0,0.00017073,2]
[401430243,1768206646350,-500.0,0.00017073,2]
[401430244,1768206646360,-500.53829083,0.00017073,2]
[401430245,1768206646371,-500.19211788,0.00017073,2]
[401430246,1768206646381,-331.18764993,0.00017073,2]
[401430247,1768206646394,-500.0,0.00017088,2]
[401430248,1768206646699,-500.0,0.00017089,2]
[401430249,1768206646720,-30000.0,0.0001709,2]
[401430250,1768206646732,-331.18764993,0.00017091,2]
[401430251,1768206646743,-1131.10845788,0.00017095,2]
[401430252,1768206646753,-150.0,0.000171,2]
[401430253,1768206646763,-150.0,0.000171,2]
[401430254,1768206646772,-150.0,0.000171,2]
[401430255,1768206646783,-150.0,0.000171,2]
[401430256,1768206646794,-150.0,0.000171,2]
[401430257,1768206646804,-150.0,0.000171,2]
[401430258,1768206646816,-150.0,0.000171,2]
[401430259,1768206646827,-1000.0,0.00017105,2]
[401430260,1768206646837,-331.18764993,0.00017109,2]
[401430261,1768206646849,-201.88,0.00017115,2]
[401430262,1768206646859,-5888.0,0.0001712,2]
[401430263,1768206646870,-331.18764993,0.00017127,2]
[401430264,1768206646879,-331.18764993,0.00017145,2]
[401430265,1768206646890,-1376.0,0.00017154,2]
[401430266,1768206646899,-6157.84376205,0.00017154,2]
[401430267,1768206646910,-150.0,0.0001716,2]
[401430268,1768206646921,-2247.8,0.00017161,2]
[401430269,1768206646932,-331.18764993,0.00017164,2]
[401430270,1768206646943,-150.0,0.00017169,2]
[401430271,1768206646953,-200.0,0.00017174,2]
[401430272,1768206646968,-150.0,0.00017175,2]
[401430273,1768206646978,-150.0,0.00017175,2]
[401430274,1768206646989,-171.53,0.00017178,2]
[401430275,1768206647000,-179.28,0.00017178,2]
[401430276,1768206647010,-1110.24,0.00017178,2]
[401430277,1768206647020,-179.28,0.00017178,2]
[401430278,1768206647030,-171.53,0.00017178,2]
[401430279,1768206647042,-179.28,0.00017178,2]
[401430280,1768206647052,-171.53,0.00017178,2]
[401430281,1768206647064,-179.28,0.00017178,2]
[401430282,1768206647074,-467.15,0.00017178,2]
[401430283,1768206647085,-179.28,0.00017178,2]
[401430284,1768206647095,-348.0,0.00017178,2]
[401430285,1768206647105,-331.18764993,0.00017182,2]
[401430286,1768206647115,-150.0,0.0001719,2]
[401430287,1768206647126,-150.0,0.000172,2]
[401430288,1768206647136,-331.18764993,0.000172,2]
[401430289,1768206647146,-158.73335703,0.00017202,2]
[401430290,1768206647157,-150.0,0.00017212,2]
[401430291,1768206647168,-150.0,0.00017212,2]
[401430292,1768206647179,-331.18764993,0.00017218,2]
[401430293,1768206647189,-150.0,0.00017229,2]
[401430294,1768206647200,-150.0,0.00017229,2]
[401430295,1768206647210,-469.78735424,0.0001723,2]
[401430296,1768206647219,-170.32,0.00017231,2]
[401430297,1768206647230,-14657.88733297,0.00017233,2]
[401430298,1768206647240,-10705.90201669,0.00017233,2]
[401430299,1768206647251,-331.18764993,0.00017236,2]
[401430300,1768206647261,-150.0,0.0001725,2]
[401430301,1768206647271,-150.0,0.0001725,2]
[401430302,1768206647282,-331.18764993,0.00017255,2]
[401430303,1768206647292,-1433.4,0.00017256,2]
[401430304,1768206647303,-1295.16,0.0001726,2]
[401430305,1768206647314,-5888.0,0.00017261,2]
[401430306,1768206647323,-1376.0,0.00017263,2]
[401430307,1768206647333,-2247.8,0.00017266,2]
[401430308,1768206647342,-170.32,0.00017271,2]
[401430309,1768206647352,-331.18764993,0.00017273,2]
[401430310,1768206647362,-1000.0,0.0001728,2]
[401430312,1768206647372,-150.0,0.0001728,2]
[401430314,1768206647382,-150.0,0.0001728,2]
[401430315,1768206647393,-1152.0,0.00017283,2]
[401430316,1768206647403,-1152.0,0.00017283,2]
[401430317,1768206647413,-331.18764993,0.00017291,2]
[401430318,1768206647422,-2200.0,0.000173,6]
[401430319,1768206647434,-150.0,0.00017308,2]
[401430320,1768206647445,-331.18764993,0.00017309,2]
[401430321,1768206647456,-150.0,0.00017325,2]
[401430322,1768206647467,-150.0,0.00017325,2]
[401430323,1768206647477,-150.0,0.00017325,2]
[401430324,1768206647487,-150.0,0.00017325,2]
[401430325,1768206647499,-331.18764993,0.00017327,2]
[401430326,1768206647512,-331.18764993,0.00017345,2]
[401430327,1768206647522,-1376.0,0.00017353,2]
[401430328,1768206647533,-150.0,0.00017357,2]
[401430329,1768206647544,-331.18764993,0.00017364,2]
[401430330,1768206647555,-1000.0,0.00017369,2]
[401430331,1768206647566,-150.0,0.0001737,2]
[401430332,1768206647581,-2247.8,0.00017371,2]
[401430333,1768206647592,-331.18764993,0.00017382,2]
[401430334,1768206647602,-1330.0,0.0001739,2]
[401430335,1768206647612,-3469.0,0.0001739,2]
[401430336,1768206647622,-1405.0,0.0001739,2]
[401430337,1768206647632,-150.0,0.000174,2]
[401430338,1768206647643,-150.0,0.000174,2]
[401430339,1768206647653,-150.0,0.000174,2]
[401430340,1768206647664,-150.0,0.000174,2]
[401430341,1768206647674,-331.18764993,0.000174,2]
[401430342,1768206647684,-1000.0,0.000174,2]
[401430343,1768206647694,-2800.0,0.000174,6]
[401430344,1768206647704,-4609.0,0.00017416,2]
[401430345,1768206647714,-331.18764993,0.00017418,2]
[401430346,1768206647724,-331.18764993,0.00017436,2]
[401430347,1768206647734,-150.0,0.00017437,2]
[401430348,1768206647744,-150.0,0.00017437,2]
[401430349,1768206647754,-150.0,0.00017446,2]
[401430350,1768206647763,-331.18764993,0.00017455,2]
[401430351,1768206647773,-1376.0,0.00017455,2]
[401430352,1768206647783,-150.0,0.0001746,2]
[401430353,1768206647793,-331.18764993,0.00017473,2]
[401430354,1768206647803,-150.0,0.00017475,2]
[401430355,1768206647813,-150.0,0.00017475,2]
[401430356,1768206647823,-2247.8,0.00017475,2]
[401430357,1768206647832,-150.0,0.00017486,2]
[401430358,1768206647842,-150.0,0.00017486,2]
[401430359,1768206647851,-331.18764993,0.00017491,2]
[401430360,1768206647861,-2000.0,0.000175,2]
[401430361,1768206647871,-1601.85016191,0.000175,2]
[401430362,1768206647880,-500.0,0.000175,6]
[401430363,1768206647891,-331.18764993,0.00017509,2]
[401430364,1768206647900,-150.0,0.0001752,2]
[401430365,1768206647911,-331.18764993,0.00017527,2]
[401430366,1768206647920,-1295.16,0.00017534,2]
[401430367,1768206647930,-331.18764993,0.00017545,2]
[401430368,1768206647939,-151.0,0.00017546,2]
[401430369,1768206647949,-688.49839244,0.00017546,2]
[401430370,1768206647959,-150.0,0.0001755,2]
[401430371,1768206647968,-150.0,0.0001755,2]
[401430372,1768206647978,-150.0,0.0001755,2]
[401430373,1768206647987,-150.0,0.0001755,2]
[401430374,1768206647997,-150.0,0.0001755,2]
[401430375,1768206648007,-331.18764993,0.00017564,2]
[401430376,1768206648016,-2247.8,0.0001758,2]
[401430377,1768206648026,-331.18764993,0.00017582,2]
[401430378,1768206648036,-150.0,0.00017585,2]
[401430379,1768206648046,-2987.79350318,0.00017585,2]
[401430380,1768206648055,-150.0,0.000176,2]
[401430381,1768206648065,-331.18764993,0.000176,2]
[401430382,1768206648075,-1000.0,0.000176,2]
[401430383,1768206648084,-500.0,0.000176,6]
[401430384,1768206648093,-150.0,0.00017614,2]
[401430385,1768206648103,-404.51117323,0.00017618,2]
[401430386,1768206648113,-500.0,0.00017618,2]
[401430387,1768206648123,-500.0,0.00017618,2]
[401430388,1768206648132,-500.0,0.00017618,2]
[401430389,1768206648142,-500.0,0.00017618,2]
[401430390,1768206648152,-500.0,0.00017618,2]
[401430391,1768206648162,-500.0,0.00017618,2]
[401430392,1768206648171,-511.15337826,0.00017618,2]
[401430393,1768206648181,-500.0,0.00017618,2]
[401430394,1768206648190,-500.0,0.00017618,2]
[401430395,1768206648200,-331.18764993,0.00017618,2]
[401430396,1768206648209,-500.52073568,0.00017621,2]
[401430397,1768206648219,-501.68963282,0.00017621,2]
[401430398,1768206648228,-1001.39881462,0.00017621,2]
[401430399,1768206648238,-1001.49774725,0.00017621,2]
[401430400,1768206648248,-1000.0,0.00017621,2]
[401430401,1768206648257,-615.72392014,0.00017621,2]
[401430402,1768206648266,-501.81552952,0.00017621,2]
[401430403,1768206648276,-1000.0,0.00017621,2]
[401430404,1768206648286,-1000.0,0.00017621,2]
[401430405,1768206648295,-1002.11848052,0.00017621,2]
[401430406,1768206648306,-1000.0,0.00017621,2]
[401430407,1768206648315,-1000.0,0.00017621,2]
[401430408,1768206648325,-1000.0,0.00017621,2]
[401430409,1768206648335,-1000.0,0.00017621,2]
[401430410,1768206648345,-604.83613644,0.00017621,2]
[401430411,1768206648355,-1001.98142269,0.00017621,2]
[401430412,1768206648365,-1002.68294103,0.00017621,2]
[401430413,1768206648375,-1000.0,0.00017621,2]
[401430414,1768206648386,-150.0,0.00017625,2]
[401430415,1768206648396,-150.0,0.00017625,2]
[401430416,1768206648406,-317.89217192,0.00017625,2]
[401430417,1768206648416,-64588.65,0.00017627,2]
[401430418,1768206648426,-331.18764993,0.00017636,2]
[401430419,1768206648436,-150.0,0.0001764,2]
[401430420,1768206648446,-150.0,0.0001764,2]
[401430421,1768206648456,-2526.34474309,0.0001764,2]
[401430422,1768206648466,-2987.79350316,0.00017648,2]
[401430423,1768206648476,-331.18764993,0.00017655,2]
[401430424,1768206648486,-150.0,0.00017662,2]
[401430425,1768206648498,-150.0,0.00017662,2]
[401430426,1768206648509,-331.18764993,0.00017673,2]
[401430427,1768206648519,-843.0,0.0001768,2]
[401430428,1768206648529,-584.221,0.0001768,2]
[401430429,1768206648539,-2247.8,0.00017685,2]
[401430430,1768206648553,-331.18764993,0.00017691,2]
[401430431,1768206648563,-28047.0,0.00017699,2]
[401430432,1768206648573,-150.0,0.000177,2]
[401430433,1768206648584,-150.0,0.000177,2]
[401430434,1768206648594,-4307.04643237,0.000177,2]
[401430435,1768206648604,-780.28325037,0.000177,2]
[401430436,1768206648614,-500.0,0.000177,6]
[401430437,1768206648624,-403.0,0.000177,5]
[401430438,1768206648633,-331.18764993,0.00017709,2]
[401430439,1768206648643,-2987.79350316,0.00017711,2]
[401430440,1768206648655,-1000.0,0.00017716,2]
[401430441,1768206648664,-1063.57,0.00017717,2]
[401430442,1768206648674,-162119.39668283,0.00017718,2]
[401430443,1768206648685,-239.44755982,0.00017718,3]
[401430444,1768206648695,-150.0,0.00017723,2]
[401430445,1768206648704,-1000.0,0.00017725,2]
[401430446,1768206648714,-331.18764993,0.00017727,2]
[401430447,1768206648724,-150.0,0.0001773,2]
[401430448,1768206648734,-1000.0,0.00017739,2]
[401430449,1768206648743,-150.0,0.0001774,2]
[401430450,1768206648753,-150.0,0.00017743,2]
[401430451,1768206648763,-150.0,0.00017743,2]
[401430452,1768206648773,-150.0,0.00017745,2]
[401430453,1768206648782,-331.18764993,0.00017745,2]
[401430454,1768206648792,-262.49854168,0.00017747,2]
[401430455,1768206648802,-1063.57,0.00017747,2]
[401430456,1768206648812,-1063.57,0.00017747,2]
[401430457,1768206648822,-1063.57,0.00017747,2]
[401430458,1768206648832,-1063.57,0.00017747,2]
[401430459,1768206648842,-1063.57,0.00017747,2]
[401430460,1768206648852,-263720.8638992,0.00017748,2]
[401430461,1768206648861,-372452.56856536,0.00017748,2]
[401430462,1768206648871,-481945.7808,0.00017748,2]
[401430463,1768206648881,-150.0,0.0001776,2]
[401430464,1768206648892,-1000.0,0.0001776,2]
[401430465,1768206648902,-1000.0,0.00017761,2]
[401430466,1768206648912,-317.89217191,0.00017763,2]
[401430467,1768206648922,-331.18764993,0.00017764,2]
[401430468,1768206648932,-1000.0,0.00017771,2]
[401430469,1768206648942,-1376.0,0.00017771,2]
[401430470,1768206648951,-2987.79350316,0.00017774,2]
[401430471,1768206648961,-150.0,0.00017775,2]
[401430472,1768206648972,-150.0,0.00017775,2]
[401430473,1768206648985,-150.0,0.00017775,2]
[401430474,1768206648995,-150.0,0.00017775,2]
[401430475,1768206649007,-331.18764993,0.00017782,2]
[401430476,1768206649017,-1000.0,0.00017782,2]
[401430477,1768206649028,-168.18552807,0.00017783,2]
[401430478,1768206649039,-1000.0,0.00017784,2]
[401430479,1768206649050,-1000.0,0.0001779,2]
[401430480,1768206649061,-2247.8,0.0001779,2]
[401430481,1768206649071,-1000.0,0.00017798,2]
[401430482,1768206649081,-1000.0,0.00017798,2]
[401430483,1768206649092,-150.0,0.000178,2]
[401430484,1768206649103,-331.18764993,0.000178,2]
[401430485,1768206649113,-14458.04141764,0.000178,2]
[401430486,1768206649124,-500.0,0.000178,6]